bitfinex-derivatives/quotes_ETHF0:USTF0_20250329
["timestamp","ask_amount","ask_price","bid_price","bid_amount"]
[1743225323636,3.397,1893.8,1893.7,2.38863]
[1743225324840,4.4535,1893.8,1893.6,4.26435]
[1743225325033,4.4535,1893.8,1893.7,1.4143]
[1743225326137,3.397,1893.8,1893.7,2.47083]
[1743225326733,4.45347,1893.8,1893.7,1.4143]
[1743225326937,4.45347,1893.8,1893.7,2.47083]
[1743225327138,3.397,1893.8,1893.7,2.47083]
[1743225327438,3.397,1893.8,1893.7,3.14713]
[1743225328140,4.45347,1893.8,1893.7,2.0906]
[1743225328334,4.45347,1893.8,1893.7,1.4143]
[1743225330140,1.05661,1893.6,1893.4,1.73298]
[1743225330440,1.05661,1893.6,1893.5,1.3601]
[1743225330643,4.45361,1893.6,1893.5,1.3601]
[1743225332034,4.45361,1893.6,1893.5,2.41674]
[1743225333542,3.397,1893.6,1893.5,2.41674]
[1743225333741,4.45359,1893.6,1893.5,2.41674]
[1743225333942,3.397,1893.6,1893.5,2.41674]
[1743225334743,4.45359,1893.6,1893.5,2.41674]
[1743225335043,4.45359,1893.6,1893.5,1.3601]
[1743225336143,4.45359,1893.6,1893.5,2.41674]
[1743225336331,4.45359,1893.6,1893.5,1.3601]
[1743225336536,5.82599,1893.6,1893.5,1.3601]
[1743225337040,6.55439,1893.6,1893.5,1.3601]
[1743225340747,6.55439,1893.6,1893.4,4.26448]
[1743225340945,1.3442,1893.5,1893.4,5.67148]
[1743225341146,2.40084,1893.5,1893.4,5.67148]
[1743225341534,2.40084,1893.5,1893.4,4.6148]
[1743225342050,1.3442,1893.5,1893.4,5.6715]
[1743225343153,2.40084,1893.5,1893.4,5.6715]
[1743225344153,2.40084,1893.5,1893.4,4.6148]
[1743225345661,1.0567,1893.4,1893.3,0.00791494]
[1743225345849,3.199,1893.4,1893.3,0.00791494]
[1743225346047,3.199,1893.4,1893.3,1.38591494]
[1743225348039,3.199,1893.4,1893.3,0.00791494]
[1743225348948,1.05686,1893.1,1893.0,3.2078]
[1743225349147,4.45286,1893.1,1893.0,1.3652]
[1743225350253,5.12296,1893.1,1893.0,1.3652]
[1743225350454,1.05692,1893.0,1892.9,0.00791494]
[1743225350652,3.18832,1893.0,1892.9,0.00791494]
[1743225356662,3.18832,1893.0,1892.9,1.34161494]
[1743225361468,5.3392,1893.0,1892.5,1.73408]
[1743225361764,1.3992,1892.9,1892.6,3.22082]
[1743225361965,3.397,1892.8,1892.7,1.4473]
[1743225362163,4.45403,1892.8,1892.7,1.4473]
[1743225362564,5.15793,1892.8,1892.7,1.4473]
[1743225369067,6.59793,1892.8,1892.7,1.4473]
[1743225369564,5.89403,1892.8,1892.7,1.4473]
[1743225378897,1.05709,1892.7,1892.6,0.72431494]
[1743225379066,3.86289,1892.7,1892.6,2.18411494]
[1743225382173,1.05714,1892.6,1892.5,2.4876]
[1743225382377,1.0572,1892.5,1892.4,2.2039]
[1743225382574,4.4532,1892.5,1892.4,2.2039]
[1743225383075,4.4532,1892.5,1892.4,1.4729]
[1743225383877,1.05726,1892.4,1892.3,0.731]
[1743225384077,3.88586,1892.4,1892.3,2.1479]
[1743225386177,3.88586,1892.4,1892.3,1.4169]
[1743225391198,7.09366,1892.4,1892.3,1.4169]
[1743225391812,1.05737,1892.2,1892.1,1.4297]
[1743225392008,4.45337,1892.2,1892.1,1.4297]
[1743225393102,4.45337,1892.2,1892.1,2.8038]
[1743225405894,4.45337,1892.2,1892.1,2.09]
[1743225411497,7.66117,1892.2,1892.1,2.09]
[1743225412298,1.05748,1892.0,1891.9,0.6736]
[1743225413296,4.26528,1892.0,1891.9,0.6736]
[1743225413695,5.71808,1892.0,1891.9,0.6736]
[1743225414095,1.05754,1891.9,1891.8,1.3976]
[1743225414296,4.45354,1891.9,1891.8,1.3976]
[1743225415803,5.90634,1891.9,1891.8,1.3976]
[1743225418890,4.45354,1891.9,1891.8,1.3976]
[1743225419698,2.64398,1891.8,1891.3,0.43267797]
[1743225419897,1.05781,1891.4,1891.3,1.14027797]
[1743225420200,4.45381,1891.4,1891.3,1.14027797]
[1743225420400,4.45381,1891.4,1891.3,0.7076]
[1743225421400,4.45381,1891.4,1891.3,2.0433]
[1743225422404,5.81581,1891.4,1891.3,2.0433]
[1743225423703,1.05817,1890.8,1890.4,3.2078]
[1743225423906,1.05804,1891.0,1890.9,1.3418]
[1743225424105,7.66184,1891.0,1890.9,1.3418]
[1743225427804,4.26584,1891.0,1890.9,1.3418]
[1743225428005,7.66284,1891.0,1890.9,1.3418]
[1743225428419,1.05821,1890.7,1890.6,0.7033]
[1743225428720,1.05832,1890.5,1890.4,0.5296]
[1743225429023,1.05854,1890.1,1890.0,1.3922]
[1743225429217,7.66334,1890.1,1890.0,2.0677]
[1743225429722,7.66334,1890.1,1890.0,1.3922]
[1743225429915,1.05865,1889.9,1889.8,0.6999]
[1743225430120,4.26645,1889.9,1889.8,0.6999]
[1743225430710,3.2078,1889.9,1889.8,0.6999]
[1743225430913,4.26645,1889.9,1889.8,0.6999]
[1743225432217,4.26645,1889.9,1889.8,2.1281]
[1743225432522,3.2078,1889.9,1889.0,3.2078]
[1743225432717,1.05877,1889.7,1889.6,1.4282]
[1743225432919,4.26657,1889.7,1889.6,1.4282]
[1743225433119,4.6629,1889.7,1889.2,0.6773]
[1743225433315,1.05897,1889.4,1889.3,1.4282]
[1743225433516,4.45997,1889.4,1889.3,1.4282]
[1743225433718,5.91507,1889.4,1889.3,1.4282]
[1743225433919,1.05899,1889.3,1889.2,0.6773]
[1743225434114,5.72189,1889.3,1889.2,1.4282]
[1743225435221,4.6629,1889.3,1888.1,3.2078]
[1743225435517,4.6629,1889.3,1888.8,1.05927]
[1743225435518,3.2078,1888.9,1888.8,1.05927]
[1743225435717,6.6487363,1888.9,1888.8,1.05927]
[1743225435923,3.4409363,1888.9,1888.8,1.58887]
[1743225436112,3.4409363,1888.9,1888.8,1.05927]
[1743225436724,3.4409363,1888.9,1888.8,1.58887]
[1743225436926,3.4409363,1888.9,1888.8,1.05927]
[1743225437624,3.4409363,1888.9,1888.8,1.58887]
[1743225437927,3.4409363,1888.9,1888.7,2.48259]
[1743225438521,3.4409363,1888.9,1888.8,0.5296]
[1743225438828,3.4409363,1888.9,1888.7,2.48259]
[1743225439031,3.4409363,1888.9,1888.8,1.05927]
[1743225440019,3.2078,1889.1,1889.0,1.05916]
[1743225440222,3.429,1889.1,1889.0,1.05916]
[1743225440626,3.429,1889.1,1889.0,2.51856]
[1743225440925,1.05906,1889.2,1889.0,1.4594]
[1743225441131,1.05906,1889.2,1889.1,1.4448]
[1743225441325,4.48906,1889.2,1889.1,1.4448]
[1743225443125,3.43,1889.2,1889.1,1.4448]
[1743225443626,4.2747663,1889.3,1889.1,1.4448]
[1743225443627,3.2157363,1889.3,1889.2,1.05905]
[1743225443825,6.6447363,1889.3,1889.2,1.05905]
[1743225444026,7.7037263,1889.3,1889.1,2.50386]
[1743225444226,7.7037263,1889.3,1889.1,1.4448]
[1743225444227,1.05905,1889.2,1889.1,1.4448]
[1743225444530,1.0591,1889.1,1889.0,0.7228]
[1743225444732,5.6268,1889.1,1889.0,0.7228]
[1743225448032,1.05916,1889.0,1888.9,0.0079363]
[1743225448332,5.89266,1889.0,1888.9,0.0079363]
[1743225450134,4.8335,1889.0,1888.9,1.0671463]
[1743225450428,5.89266,1889.0,1888.9,0.0079363]
[1743225452233,5.89266,1889.0,1888.9,1.0671463]
[1743225452432,5.89266,1889.0,1888.9,0.0079363]
[1743225452636,3.432,1889.0,1888.9,1.0671463]
[1743225454732,3.2078,1889.2,1889.1,1.0591]
[1743225455033,6.6358,1889.2,1889.1,1.0591]
[1743225456332,3.2078,1889.2,1889.1,1.0591]
[1743225456533,6.6338,1889.2,1889.1,1.0591]
[1743225456924,7.69285,1889.2,1889.1,1.0591]
[1743225457124,6.6338,1889.2,1889.1,1.7412]
[1743225458231,6.6318,1889.2,1889.1,2.437]
[1743225462231,2.4367263,1889.3,1889.1,2.437]
[1743225462232,0.0079363,1889.3,1889.2,1.05905]
[1743225462434,6.3e-06,1889.3,1889.2,5.67895]
[1743225462630,6.3e-06,1889.3,1889.2,8.17895]
[1743225469641,6.3e-06,1889.3,1889.2,5.67895]
[1743225475952,6.3e-06,1889.3,1889.2,6.20855]
[1743225492565,6.3e-06,1889.3,1889.2,14.52833946]
[1743225492765,6.3e-06,1889.3,1889.2,12.02833946]
[1743225492966,6.3e-06,1889.3,1889.2,6.20855]
[1743225496270,6.3e-06,1889.3,1889.2,5.67895]
[1743225496467,6.3e-06,1889.3,1889.2,6.20855]
[1743225499673,0.693,1889.5,1889.2,11.8981413]
[1743225499870,4.0927,1889.7,1889.6,1.05882]
[1743225500374,4.7807,1889.7,1889.6,1.05882]
[1743225500771,4.7807,1889.7,1889.6,2.51632]
[1743225501275,4.7807,1889.7,1889.6,1.05882]
[1743225502973,6.1189,1889.7,1889.6,1.05882]
[1743225508378,2.7179,1889.7,1889.6,1.05882]
[1743225510586,1.3797,1889.7,1889.6,1.05882]
[1743225512285,0.688,1889.7,1889.6,1.76092]
[1743225512782,0.688,1889.7,1889.6,6.31442]
[1743225513782,0.688,1889.7,1889.6,5.61232]
[1743225516089,0.688,1889.7,1889.6,6.14192]
[1743225516384,0.688,1889.7,1889.6,5.61232]
[1743225516588,0.688,1889.7,1889.6,6.14192]
[1743225520586,0.688,1889.7,1889.6,2.93412]
[1743225535902,0.688,1889.7,1889.6,2.40452]
[1743225536099,0.688,1889.7,1889.6,2.93412]
[1743225536300,0.688,1889.7,1889.6,2.40452]
[1743225536502,0.688,1889.7,1889.6,2.93412]
[1743225537006,2.1591,1889.7,1889.6,2.93412]
[1743225538401,2.1591,1889.7,1889.6,2.40452]
[1743225538604,2.1591,1889.7,1889.6,1.3457]
[1743225538906,2.1591,1889.7,1889.5,1.05886]
[1743225539205,2.1601,1889.6,1889.5,1.05886]
[1743225541807,0.6839,1889.6,1889.5,1.05886]
[1743225542106,0.688,1889.7,1889.6,1.05882]
[1743225542308,4.088,1889.7,1889.6,1.05882]
[1743225542500,4.088,1889.7,1889.6,2.45302]
[1743225543608,3.4079363,1889.8,1889.7,1.05877]
[1743225543803,3.4079363,1889.8,1889.7,3.15957]
[1743225549411,0.0079363,1889.8,1889.7,3.15957]
[1743225556420,0.0079363,1889.8,1889.7,3.68917]
[1743225557619,0.0079363,1889.8,1889.7,2.45297]
[1743225557620,4.1128363,1889.8,1889.7,2.45297]
[1743225557819,4.1128363,1889.8,1889.4,3.7374]
[1743225558010,2.0676,1889.7,1889.5,1.3375]
[1743225558210,1.3864,1889.6,1889.5,2.39638]
[1743225560520,0.6812,1889.7,1889.6,1.05882]
[1743225560720,0.6812,1889.7,1889.6,2.47062]
[1743225560920,2.046,1889.7,1889.6,2.47062]
[1743225562711,2.046,1889.7,1889.6,1.05882]
[1743225567832,3.1048,1889.7,1889.5,2.46006]
[1743225568033,4.6166,1889.6,1889.5,2.46006]
[1743225569429,1.05891,1889.5,1889.1,3.2078]
[1743225569634,4.0876,1889.4,1889.3,1.05895]
[1743225570129,5.4687,1889.4,1889.3,1.05895]
[1743225570536,5.4687,1889.4,1889.3,2.40535]
[1743225571535,6.52763,1889.4,1889.3,1.3464]
[1743225571730,6.52763,1889.4,1889.3,2.40539]
[1743225572037,6.52763,1889.4,1889.3,1.3464]
[1743225572329,6.52763,1889.4,1889.2,1.059]
[1743225572525,1.4373,1889.3,1889.2,2.4801]
[1743225573229,3.2078,1889.6,1889.5,1.05888]
[1743225573533,3.399,1889.6,1889.5,1.05888]
[1743225575530,4.0904,1889.7,1889.6,1.05882]
[1743225576638,4.0904,1889.7,1889.6,3.17012]
[1743225577332,0.0079363,1889.8,1889.7,1.05877]
[1743225577531,3.4069363,1889.8,1889.7,2.47817]
[1743225585632,3.4069363,1889.8,1889.7,3.20587]
[1743225592443,20.68512689,1890.4,1889.9,2.64664]
[1743225592738,3.399,1890.3,1890.2,1.05845]
[1743225592944,20.68512689,1890.4,1890.3,1.05843]
[1743225593143,24.08412689,1890.4,1890.3,1.05843]
[1743225595636,24.08412689,1890.4,1890.3,1.74823]
[1743225596349,3.399,1890.4,1890.3,1.74823]
[1743225596849,0.0079363,1890.5,1890.3,1.74823]
[1743225597040,0.0079363,1890.5,1890.4,1.4299]
[1743225597348,4.4642563,1890.5,1890.4,1.4299]
[1743225597743,3.7511363,1890.5,1890.4,1.4299]
[1743225597949,6.9589363,1890.5,1890.4,1.4299]
[1743225598547,6.6137363,1890.5,1890.4,2.48827]
[1743225599242,6.6137363,1890.5,1890.4,1.4299]
[1743225599548,6.6137363,1890.5,1890.4,2.48827]
[1743225602553,6.6137363,1890.5,1890.4,1.4299]
[1743225602744,7.6720563,1890.5,1890.4,1.4299]
[1743225604542,8.0164563,1890.5,1890.4,1.4299]
[1743225611752,1.05843,1890.3,1890.2,0.0079363]
[1743225611958,1.0587,1889.9,1889.7,2.15705807]
[1743225612154,4.4567,1889.9,1889.7,3.21265]
[1743225612351,4.4567,1889.9,1889.8,1.4578]
[1743225612667,7.6645,1889.9,1889.8,1.4578]
[1743225618463,1.05871,1889.8,1889.7,0.0079363]
[1743225618763,1.78461,1889.8,1889.7,0.0079363]
[1743225622360,1.05882,1889.6,1889.5,1.1312963]
[1743225622562,7.66462,1889.6,1889.5,1.1312963]
[1743225622761,1.05899,1889.3,1889.2,0.6855]
[1743225622965,4.45699,1889.3,1889.2,0.6855]
[1743225625164,4.45699,1889.3,1889.1,0.0079363]
[1743225625165,1.05905,1889.2,1889.1,0.0079363]
[1743225625467,4.97375,1889.2,1889.1,0.0079363]
[1743225626555,7.47375,1889.2,1889.1,0.0079363]
[1743225626764,8.05315,1889.2,1889.1,0.0079363]
[1743225627061,8.76145,1889.2,1889.1,0.0079363]
[1743225627461,8.76145,1889.2,1889.1,6.3e-06]
[1743225627859,1.0594,1888.6,1888.4,0.5296]
[1743225628059,1.0594,1888.6,1888.5,1.4153]
[1743225628362,4.4584,1888.6,1888.5,1.4153]
[1743225628566,6.4652,1888.6,1888.5,1.4153]
[1743225628763,8.9652,1888.6,1888.5,1.4153]
[1743225629265,1.05972,1888.0,1887.8,1.05981]
[1743225629463,1.0595,1888.4,1888.3,1.4153]
[1743225629765,7.1939,1888.4,1887.7,3.2078]
[1743225629964,3.2078,1888.2,1887.8,1.4595]
[1743225630169,1.05976,1888.0,1887.8,1.4595]
[1743225630560,1.05976,1888.0,1887.8,2.1882]
[1743225630870,1.05976,1888.0,1887.8,2.8891]
[1743225631066,1.05976,1888.0,1887.9,1.4595]
[1743225632567,5.1741,1888.1,1887.9,1.4595]
[1743225632962,1.05972,1888.0,1887.9,1.4595]
[1743225633996,4.1144,1888.1,1887.9,1.4595]
[1743225633997,5.1741,1888.1,1887.9,1.4595]
[1743225634287,1.05972,1888.0,1887.9,1.4595]
[1743225634489,3.406,1888.1,1887.9,1.4595]
[1743225634704,4.4657,1888.1,1887.9,1.4595]
[1743225635011,3.403,1888.0,1887.9,1.4595]
[1743225635291,3.403,1888.0,1887.9,2.51928]
[1743225636392,3.403,1888.0,1887.9,1.4595]
[1743225636990,3.403,1888.0,1887.9,2.51928]
[1743225637394,4.26744,1888.2,1887.9,2.51928]
[1743225637590,3.401,1888.1,1888.0,1.4164]
[1743225638179,3.2078,1888.2,1888.0,2.47612]
[1743225638387,3.401,1888.1,1888.0,1.4164]
[1743225638579,3.401,1888.1,1887.8,1.4296]
[1743225638580,3.401,1888.1,1887.9,1.05978]
[1743225638875,3.2078,1888.2,1888.0,1.05968]
[1743225639077,3.401,1888.1,1888.0,1.05968]
[1743225639275,3.401,1888.1,1887.9,1.05974]
[1743225640887,3.401,1888.1,1887.8,2.48942]
[1743225641084,4.46072,1888.1,1887.8,2.48942]
[1743225641287,3.401,1888.1,1887.9,1.05977]
[1743225642389,4.46067,1888.1,1887.8,2.48939]
[1743225642589,4.46067,1888.1,1887.9,1.05977]
[1743225643090,4.46067,1888.1,1887.8,1.4296]
[1743225643091,1.05978,1887.9,1887.8,1.4296]
[1743225643589,1.77446,1888.0,1887.8,1.4296]
[1743225644095,1.77446,1888.0,1887.8,2.48943]
[1743225645385,1.77446,1888.0,1887.8,1.4296]
[1743225646297,3.2078,1887.9,1887.5,4.26778]
[1743225646599,1.05991,1887.7,1887.5,5.71268]
[1743225646797,1.05992,1887.7,1887.5,4.6527]
[1743225646995,1.05992,1887.7,1887.5,2.50488]
[1743225649098,4.46085,1887.8,1887.5,1.4449]
[1743225649303,3.401,1887.8,1887.6,1.05993]
[1743225649703,4.46085,1887.8,1887.6,1.05993]
[1743225650003,3.401,1887.8,1887.6,1.05993]
[1743225650404,3.401,1887.8,1887.7,1.05989]
[1743225650601,4.46083,1887.8,1887.6,1.05993]
[1743225651107,3.401,1887.8,1887.7,1.05989]
[1743225651606,3.401,1887.8,1887.6,1.05991]
[1743225652106,3.401,1887.8,1887.7,1.05989]
[1743225653600,3.401,1887.8,1887.6,1.05991]
[1743225653804,3.401,1887.8,1887.7,1.05989]
[1743225655004,3.402,1887.8,1887.7,1.05989]
[1743225657608,48.94,1888.0,1887.7,0.5304]
[1743225657812,48.94,1888.0,1887.9,1.05978]
[1743225658112,52.342,1888.0,1887.9,1.05978]
[1743225658310,52.342,1888.0,1887.9,1.73348]
[1743225658509,52.342,1888.0,1887.9,3.14758]
[1743225659899,52.342,1888.0,1887.9,2.0878]
[1743225660103,52.342,1888.0,1887.9,3.14758]
[1743225660402,52.342,1888.0,1887.9,2.0878]
[1743225660602,52.342,1888.0,1887.9,3.14758]
[1743225661610,52.342,1888.0,1887.4,0.39589535]
[1743225661611,54.842,1888.0,1887.4,0.39589535]
[1743225661814,4.2678,1887.5,1887.3,1.4237]
[1743225662008,5.77966,1887.4,1887.3,1.4237]
[1743225662608,4.1369,1887.4,1887.3,2.48381]
[1743225662806,4.1369,1887.4,1887.3,1.4237]
[1743225663001,4.7196,1887.4,1887.3,2.87516099]
[1743225663199,4.1369,1887.4,1887.3,2.87516099]
[1743225663601,4.1359,1887.4,1887.3,2.87516099]
[1743225664212,4.1349,1887.4,1887.3,2.87516099]
[1743225666211,4.1329,1887.4,1887.3,2.87516099]
[1743225666409,0.7229,1887.4,1887.3,2.87516099]
[1743225666712,3.411,1887.4,1887.3,2.87516099]
[1743225667313,4.2757363,1887.5,1887.3,2.87516099]
[1743225667510,4.2757363,1887.5,1887.4,1.352]
[1743225667709,6.6257363,1887.5,1887.4,2.0743]
[1743225667902,7.6857363,1887.5,1887.4,2.0743]
[1743225669412,6.6257363,1887.5,1887.4,3.13436]
[1743225669614,6.6237363,1887.5,1887.4,3.13436]
[1743225669813,6.6237363,1887.5,1887.4,3.82026]
[1743225671515,6.6237363,1887.5,1887.4,2.7602]
[1743225671516,7.6837363,1887.5,1887.4,2.7602]
[1743225672224,7.6837363,1887.5,1887.4,2.0743]
[1743225672717,7.6837363,1887.5,1887.4,3.13436]
[1743225673019,6.6237363,1887.5,1887.4,3.13436]
[1743225673615,7.6837363,1887.5,1887.4,2.0743]
[1743225675624,7.6837363,1887.5,1887.4,1.352]
[1743225678626,8.2664363,1887.5,1887.4,1.352]
[1743225679816,1.0602,1887.2,1886.9,1.06034]
[1743225680020,5.19773,1887.1,1886.9,1.76098]
[1743225680217,3.402,1887.0,1886.9,1.76098]
[1743225680624,3.402,1887.0,1886.9,1.06028]
[1743225681126,3.402,1887.0,1886.9,2.47038]
[1743225681426,3.402,1887.0,1886.9,2.87683602]
[1743225683631,3.402,1887.0,1886.9,1.81655602]
[1743225684430,3.402,1887.0,1886.9,2.87689602]
[1743225684732,3.402,1887.0,1886.9,1.81655602]
[1743225684931,3.402,1887.0,1886.9,2.87689602]
[1743225685934,4.46228,1887.0,1886.9,1.81655602]
[1743225686129,3.402,1887.0,1886.9,1.81655602]
[1743225686524,3.402,1887.0,1886.9,2.87689602]
[1743225689434,4.26797,1887.3,1887.0,1.06026]
[1743225689635,4.46518,1887.2,1887.1,2.0279]
[1743225690036,4.46518,1887.2,1887.1,1.3534]
[1743225690226,5.59518,1887.2,1887.1,1.3534]
[1743225691237,5.04848,1887.2,1887.1,1.3534]
[1743225691537,3.405,1887.2,1887.1,2.41362]
[1743225692037,4.46517,1887.2,1887.1,2.41362]
[1743225692736,4.46517,1887.2,1887.1,1.3534]
[1743225693938,5.04787,1887.2,1887.1,1.3534]
[1743225696533,5.04787,1887.2,1887.1,2.41362]
[1743225697445,4.46517,1887.2,1887.1,2.41362]
[1743225697643,0.0079363,1887.5,1887.1,7.0612]
[1743225697848,0.0079363,1887.5,1887.4,1.06006]
[1743225698142,1.8513,1888.1,1888.0,1.05972]
[1743225698143,0.7221,1888.1,1888.0,1.05972]
[1743225698338,4.1441,1888.1,1888.0,1.05972]
[1743225698539,3.422,1888.1,1888.0,1.05972]
[1743225700938,52.3969363,1888.2,1887.8,1.3489]
[1743225701245,52.3969363,1888.2,1887.9,1.05975]
[1743225701442,53.4565463,1888.2,1888.0,1.3769]
[1743225701746,55.6047363,1888.2,1888.0,1.3769]
[1743225702140,56.6643763,1888.2,1888.0,1.3769]
[1743225702342,0.5828,1888.1,1888.0,1.3769]
[1743225702740,1.64246,1888.1,1888.0,1.3769]
[1743225703245,1.64246,1888.1,1887.6,1.05992]
[1743225703246,1.0598,1887.9,1887.6,1.05992]
[1743225703447,6.6328,1887.8,1887.6,2.43703]
[1743225703643,7.2141,1887.8,1887.7,1.3771]
[1743225704547,3.425,1887.8,1887.7,2.43699]
[1743225705048,9.1328,1887.8,1887.3,1.0679963]
[1743225705249,3.2078,1887.6,1887.4,1.3771]
[1743225705547,5.7648,1887.5,1887.4,1.3771]
[1743225705946,1.06006,1887.4,1887.3,0.0079363]
[1743225706145,4.84916,1887.4,1887.3,0.0079363]
[1743225709642,7.34916,1887.4,1887.3,0.0079363]
[1743225709849,5.39536,1887.4,1887.3,0.0079363]
[1743225715850,3.2078,1887.4,1887.3,0.0079363]
[1743225716153,7.69386,1887.4,1887.3,1.3485363]
[1743225716952,8.27626,1887.4,1887.3,1.3485363]
[1743225718560,57.24326,1887.4,1887.3,1.3485363]
[1743225720960,56.66086,1887.4,1887.3,1.3485363]
[1743225721758,57.24316,1887.4,1887.3,1.3485363]
[1743225722757,56.66086,1887.4,1887.3,1.3485363]
[1743225722955,56.65686,1887.4,1887.3,1.3485363]
[1743225723154,56.65686,1887.4,1887.3,2.7900363]
[1743225726658,53.23486,1887.4,1887.3,2.7900363]
[1743225726861,55.5938,1887.4,1887.3,3.8501463]
[1743225727355,56.65386,1887.4,1887.3,3.8501463]
[1743225728056,48.967,1887.4,1887.3,3.8501463]
[1743225728260,52.385,1887.4,1887.3,3.8501463]
[1743225732963,3.418,1887.4,1887.3,3.8501463]
[1743225733161,2.3061,1887.4,1887.3,3.8501463]
[1743225737752,48.966,1887.9,1887.8,1.05983]
[1743225737956,52.381,1887.9,1887.8,1.05983]
[1743225739061,52.381,1887.9,1887.8,2.41493]
[1743225741558,0.0079363,1888.2,1888.1,1.05966]
[1743225741763,3.4229363,1888.2,1888.1,1.05966]
[1743225742271,7.6903763,1888.2,1888.0,1.0597]
[1743225742571,1.3495,1888.1,1888.0,1.05972]
[1743225742867,0.6762,1888.1,1888.0,1.05972]
[1743225743073,1.73586,1888.1,1887.9,1.05973]
[1743225743370,1.9319,1888.1,1888.0,1.05972]
[1743225743873,1.3495,1888.1,1888.0,1.05972]
[1743225744070,0.6762,1888.1,1888.0,1.05972]
[1743225746464,7.6903463,1888.2,1888.1,1.05966]
[1743225746465,0.0079363,1888.2,1888.1,1.05966]
[1743225746664,3.4289363,1888.2,1888.1,1.05966]
[1743225748973,3.4329363,1888.2,1888.1,1.05966]
[1743225749571,0.0079363,1888.2,1888.1,1.05966]
[1743225750973,3.2157363,1888.2,1887.4,3.2078]
[1743225751274,4.2676,1887.9,1887.6,1.05991]
[1743225751466,5.94323,1887.8,1887.6,1.05991]
[1743225752070,4.8834,1887.8,1887.6,1.05991]
[1743225752873,5.94325,1887.8,1887.5,0.6675]
[1743225753177,5.94325,1887.8,1887.6,1.05994]
[1743225753378,6.52505,1887.8,1887.6,1.05994]
[1743225753877,6.52505,1887.8,1887.7,1.05989]
[1743225753878,5.4652,1887.8,1887.7,1.05989]
[1743225754075,6.52504,1887.8,1887.6,1.0599]
[1743225754872,5.4652,1887.8,1887.6,1.0599]
[1743225755476,6.52504,1887.8,1887.6,1.0599]
[1743225756182,6.52504,1887.8,1887.5,0.6675]
[1743225756680,6.52504,1887.8,1887.6,1.05993]
[1743225756979,6.52504,1887.8,1887.6,2.39683]
[1743225757367,6.52504,1887.8,1887.7,1.3369]
[1743225758584,4.8834,1887.8,1887.7,2.39679]
[1743225758783,5.94323,1887.8,1887.7,2.39679]
[1743225759078,5.94323,1887.8,1887.7,1.3369]
[1743225759278,5.21283,1887.8,1887.7,2.39679]
[1743225760281,4.153,1887.8,1887.7,2.39679]
[1743225761185,5.21283,1887.8,1887.7,1.3369]
[1743225762088,5.21283,1887.8,1887.7,2.39679]
[1743225762292,5.21283,1887.8,1887.7,1.3369]
[1743225764787,5.79543,1887.8,1887.7,1.3369]
[1743225766594,1.05998,1887.6,1887.5,1.4477]
[1743225766892,1.05998,1887.6,1887.5,2.5077]
[1743225766893,4.26778,1887.6,1887.5,2.5077]
[1743225767797,4.26778,1887.6,1887.5,1.4477]
[1743225768791,1.06006,1887.4,1887.3,0.0079363]
[1743225769099,7.70686,1887.4,1887.3,0.0079363]
[1743225769298,7.70686,1887.4,1887.3,1.4502363]
[1743225769494,8.37646,1887.4,1887.3,1.4502363]
[1743225769994,1.06018,1887.2,1887.0,1.06026]
[1743225770196,1.06018,1887.2,1887.1,1.3885]
[1743225770391,7.71298,1887.2,1887.1,1.3885]
[1743225770585,6.6528,1887.2,1887.1,1.3885]
[1743225770784,6.6528,1887.2,1887.1,2.44872]
[1743225771794,6.6528,1887.2,1887.1,1.3885]
[1743225772197,6.6528,1887.2,1887.1,2.0582]
[1743225772500,7.71297,1887.2,1887.1,2.0582]
[1743225773903,6.6528,1887.2,1887.1,3.11842]
[1743225774096,6.6528,1887.2,1887.1,2.0582]
[1743225775192,7.71297,1887.2,1887.1,2.0582]
[1743225775498,7.71297,1887.2,1887.1,3.11842]
[1743225775800,6.6528,1887.2,1887.1,3.11842]
[1743225776000,7.71297,1887.2,1887.1,2.0582]
[1743225776897,7.71297,1887.2,1887.1,1.3885]
[1743225777098,6.6528,1887.2,1887.1,1.3885]
[1743225777302,7.71297,1887.2,1887.1,2.44872]
[1743225777503,7.71297,1887.2,1887.1,1.3885]
[1743225783098,3.2078,1887.2,1887.1,1.3885]
[1743225783396,6.6478,1887.2,1887.1,2.44872]
[1743225783597,3.2078,1887.2,1887.1,2.44872]
[1743225784901,3.445,1887.6,1887.5,1.05997]
[1743225787911,3.445,1887.6,1887.4,3.23622]
[1743225788101,3.445,1887.6,1887.5,1.4702]
[1743225788406,3.445,1887.6,1887.5,2.5302]
[1743225789906,4.50494,1887.6,1887.5,1.4702]
[1743225790206,6.59914,1887.6,1887.5,1.4702]
[1743225791103,5.5392,1887.6,1887.5,1.4702]
[1743225791703,5.5392,1887.6,1887.5,2.5302]
[1743225792508,6.59914,1887.6,1887.5,2.5302]
[1743225792911,5.5392,1887.6,1887.5,2.5302]
[1743225793509,6.59914,1887.6,1887.5,1.4702]
[1743225796812,5.5392,1887.6,1887.5,2.5302]
[1743225797620,6.59914,1887.6,1887.5,1.4702]
[1743225799013,6.59914,1887.6,1887.5,2.5302]
[1743225799014,3.433,1887.6,1887.5,2.5302]
[1743225799812,4.49294,1887.6,1887.5,1.4702]
[1743225800217,5.97224,1887.6,1887.5,1.4702]
[1743225800720,3.443,1887.6,1887.5,2.53018]
[1743225803523,4.1123,1887.6,1887.5,2.53018]
[1743225805821,5.4489,1887.6,1887.5,2.53018]
[1743225807023,4.1123,1887.6,1887.5,2.53018]
[1743225807322,3.443,1887.6,1887.5,5.73798]